bitfinex/quotes_ETHUSD_20240810
["timestamp","ask_amount","ask_price","bid_price","bid_amount"]
[1723251191013,3.86808,2585.3,2584.3,3.86948]
[1723251191217,7.73561,2585.5,2584.7,3.86881]
[1723251191401,7.73561,2585.5,2584.8,3.86868]
[1723251191402,3.86791,2585.4,2584.8,3.86868]
[1723251191602,3.86751,2585.7,2584.9,2.482]
[1723251191838,3.86751,2585.7,2585.1,3.8682]
[1723251192052,0.386717,2585.8,2585.2,3.86804]
[1723251192259,3.86668,2586.2,2585.6,3.86745]
[1723251192542,3.86661,2586.3,2585.8,3.86723]
[1723251192745,0.628751,2586.2,2585.8,3.86723]
[1723251193355,3.86641,2586.4,2585.8,3.86723]
[1723251193356,3.86627,2586.5,2585.9,3.86705]
[1723251193653,3.86627,2586.5,2585.8,3.86723]
[1723251193654,3.86627,2586.5,2585.8,3.86717]
[1723251193817,3.86635,2586.5,2585.8,3.86726]
[1723251194152,0.386635,2586.4,2585.9,3.86711]
[1723251194453,3.86719,2585.9,2585.1,2.482]
[1723251194753,3.86719,2585.9,2585.2,3.86816]
[1723251194963,3.86688,2586.1,2585.4,3.86777]
[1723251195422,3.86688,2586.1,2585.1,2.482]
[1723251195423,3.86687,2586.1,2585.1,2.482]
[1723251195622,3.86732,2585.8,2585.1,2.482]
[1723251195812,3.86703,2586.0,2585.3,3.86791]
[1723251196016,3.86672,2586.2,2585.4,3.94521503]
[1723251196211,2.4209,2586.3,2585.3,3.86796]
[1723251196455,3.86727,2585.9,2585.2,3.86806]
[1723251196641,4.253997,2585.9,2585.3,3.86792]
[1723251196844,0.386727,2585.9,2585.4,3.86785]
[1723251197152,0.4253717,2585.8,2585.2,3.86806]
[1723251197514,0.4253717,2585.8,2585.2,7.73612]
[1723251197857,0.4253717,2585.8,2585.2,3.86805]
[1723251198161,4.2926817,2585.8,2585.2,3.86805]
[1723251198365,3.86763,2585.6,2585.1,2.482]
[1723251198515,3.86743,2585.7,2584.9,3.86849]
[1723251198719,3.86775,2585.5,2584.9,7.73699]
[1723251198921,0.386743,2585.6,2585.0,3.86845]
[1723251199339,5.4209,2586.3,2585.6,3.86755]
[1723251199518,3.86662,2586.3,2585.7,3.86741]
[1723251199715,2.3546,2586.6,2585.7,3.86741]
[1723251199917,3.86648,2586.4,2585.7,3.86741]
[1723251200122,0.386648,2586.3,2585.7,3.86741]
[1723251200328,0.386648,2586.3,2585.7,3.86732]
[1723251200530,3.86648,2586.4,2585.7,3.86732]
[1723251200726,3.86648,2586.4,2585.8,2.3324]
[1723251201027,3.86648,2586.4,2585.7,3.86732]
[1723251201337,3.86648,2586.4,2585.7,3.8674]
[1723251201338,3.86644,2586.4,2585.7,3.8674]
[1723251201673,3.86644,2586.4,2585.7,7.7347]
[1723251202263,3.86631,2586.5,2585.9,3.86701]
[1723251202561,3.86612,2586.6,2586.1,3.8668]
[1723251203323,3.86612,2586.6,2586.0,2.3324]
[1723251203546,2.3546,2586.9,2586.0,2.3324]
[1723251203547,3.86628,2586.5,2586.0,2.3324]
[1723251204364,3.866,2586.7,2586.0,6.19923]
[1723251204574,3.86625,2586.5,2586.0,2.3324]
[1723251204869,3.86653,2586.3,2586.0,2.3324]
[1723251205042,7.73259,2586.5,2586.0,2.3324]
[1723251205226,8.805849,2586.5,2586.0,2.3324]
[1723251205429,3.86647,2586.4,2586.0,2.3324]
[1723251206329,4.939499,2586.5,2586.0,2.3324]
[1723251206764,3.86639,2586.4,2586.0,2.3324]
[1723251206945,4.939499,2586.5,2586.0,2.3324]
[1723251206946,3.86654,2586.3,2586.0,2.3324]
[1723251207270,3.86654,2586.3,2585.0,17.699]
[1723251207271,3.86693,2586.1,2585.6,6.19995]
[1723251207564,4.7472639,2586.3,2585.6,6.19995]
[1723251207775,3.86666,2586.3,2585.6,6.19995]
[1723251208144,3.86687,2586.1,2585.6,2.3324]
[1723251208844,3.86657,2586.3,2585.7,3.8674]
[1723251209169,4.939549,2586.5,2585.9,3.86712]
[1723251209383,1.073259,2586.5,2586.0,3.94421595]
[1723251209576,6.86613,2586.6,2586.0,3.86688]
[1723251210073,3.86632,2586.5,2585.8,3.86714]
[1723251210439,3.86652,2586.4,2585.8,3.86714]
[1723251210765,3.86652,2586.4,2585.4,3.86774]
[1723251210766,1.073284,2586.4,2585.4,3.86774]
[1723251210938,3.86679,2586.2,2585.6,3.86753]
[1723251211251,3.86679,2586.2,2585.6,3.86749]
[1723251211448,3.86652,2586.3,2585.7,3.86734]
[1723251212082,3.86644,2586.4,2585.8,3.86727]
[1723251212280,3.0,2586.3,2585.8,7.73445]
[1723251212441,3.86611,2586.6,2586.0,3.86687]
[1723251212756,3.86611,2586.6,2586.0,7.0577225]
[1723251212961,3.86597,2586.7,2586.1,3.86677]
[1723251213352,3.86597,2586.7,2586.2,0.07732491]
[1723251213958,3.86609,2586.6,2586.1,3.86673]
[1723251214355,3.86594,2586.7,2586.1,7.73343]
[1723251214564,10.73175,2586.8,2586.2,3.86667]
[1723251214884,3.0,2586.7,2586.2,3.86667]
[1723251215084,3.86553,2587.0,2586.3,3.86649]
[1723251215246,3.86571,2586.9,2586.3,3.86649]
[1723251215447,3.86553,2587.0,2586.4,3.86636]
[1723251215881,3.86553,2587.0,2586.2,4.9738033]
[1723251216383,3.86579,2586.8,2586.3,3.86644]
[1723251216687,3.86579,2586.8,2586.3,4.75819682]
[1723251217200,3.86594,2586.7,2586.3,0.89175682]
[1723251217485,3.86594,2586.7,2585.7,6.19972]
[1723251217486,3.86667,2586.3,2585.7,6.19972]
[1723251217863,3.86663,2586.3,2585.7,6.19972]
[1723251218063,3.86661,2586.3,2585.7,6.19972]
[1723251218747,3.86661,2586.3,2585.3,23.42794]
[1723251218748,3.86699,2586.0,2585.3,23.42794]
[1723251218953,3.8668,2586.2,2585.5,3.86763]
[1723251219653,3.8668,2586.2,2585.4,2.3324]
[1723251219877,3.86686,2586.1,2585.6,3.86747]
[1723251220161,3.86678,2586.2,2585.6,3.86747]
[1723251220886,3.86723,2585.9,2585.4,2.3324]
[1723251221059,3.86738,2585.8,2585.4,2.3324]
[1723251221401,3.86755,2585.7,2585.1,6.16931]
[1723251221562,7.73504,2585.7,2585.1,6.16931]
[1723251221761,3.86752,2585.7,2585.2,3.86816]
[1723251222494,3.86758,2585.6,2585.1,3.304768]
[1723251223518,3.86752,2585.7,2585.1,2.301]
[1723251223736,2.4175,2586.1,2585.1,2.301]
[1723251223737,6.28435,2586.1,2585.1,2.301]
[1723251223881,3.86744,2585.7,2585.1,2.301]
[1723251224376,3.8678,2585.5,2584.9,3.86857]
[1723251224574,3.86789,2585.4,2584.8,13.65968]
[1723251224832,3.86819,2585.2,2584.5,2.301]
[1723251225116,3.86847,2585.0,2584.5,2.301]
[1723251225281,7.73707,2585.0,2584.5,2.301]
[1723251225483,3.86847,2585.0,2584.5,2.301]
[1723251226024,3.86847,2585.0,2584.5,6.17021]
[1723251226529,3.86826,2585.2,2584.5,6.17021]
[1723251226675,3.86826,2585.2,2584.5,7.923092]
[1723251226676,3.86841,2585.1,2584.5,7.923092]
[1723251227612,3.86841,2585.1,2584.5,11.792222]
[1723251227822,3.86826,2585.2,2584.5,7.923092]
[1723251228031,3.86791,2585.4,2584.8,3.86864]
[1723251228315,3.86773,2585.5,2585.0,3.86846]
[1723251228519,6.86764,2585.6,2585.0,3.86846]
[1723251228520,3.86764,2585.6,2585.0,6.16946]
[1723251228703,3.0,2585.9,2585.3,3.8679]
[1723251228913,3.0,2585.9,2585.1,0.616946]
[1723251229229,3.86765,2585.6,2585.1,0.616946]
[1723251229528,3.86736,2585.8,2585.2,3.86816]
[1723251229685,7.73474,2585.8,2585.2,3.86816]
[1723251230121,3.86745,2585.7,2585.2,3.86816]
[1723251230617,3.86662,2586.3,2585.7,3.86731]
[1723251230815,7.73328,2586.3,2585.7,3.86731]
[1723251231002,3.86667,2586.2,2585.7,3.86731]
[1723251233224,3.86727,2585.8,2585.4,2.301]
[1723251233399,3.86699,2586.0,2585.4,6.16877]
[1723251233724,7.73407,2586.0,2585.4,6.16877]
[1723251234023,7.73407,2586.0,2585.4,2.301]
[1723251234024,3.86713,2585.9,2585.4,2.301]
[1723251234230,3.86735,2585.8,2585.4,2.301]
[1723251234388,3.86735,2585.8,2585.3,3.86793]
[1723251234389,3.86735,2585.8,2585.2,7.49]
[1723251234590,3.86728,2585.8,2585.2,7.49]
[1723251234815,3.86756,2585.7,2585.2,7.49]
[1723251235010,7.73464,2585.8,2585.2,5.620893]
[1723251236521,3.86728,2585.8,2585.3,3.86801]
[1723251237039,3.86728,2585.8,2585.1,6.16926]
[1723251237226,3.86728,2585.8,2585.2,0.616926]
[1723251237430,2.4175,2586.4,2585.2,0.616926]
[1723251237599,3.86676,2586.2,2585.5,3.8676]
[1723251237992,3.867,2586.0,2585.5,3.8676]
[1723251238326,3.867,2586.0,2585.3,6.16888]
[1723251238497,3.8672,2585.9,2585.4,0.616888]
[1723251239435,10.15043,2586.4,2585.8,3.86726]
[1723251239608,3.0,2586.5,2585.9,3.86701]
[1723251239802,3.86593,2586.7,2586.1,3.8668]
[1723251240016,3.86593,2586.7,2586.1,7.73353]
[1723251240202,2.3,2587.1,2586.2,0.07732807]
[1723251240390,2.3,2587.4,2586.5,3.86614]
[1723251240594,4.034,2588.0,2586.9,3.86562]
[1723251240595,3.86474,2587.5,2586.9,3.86562]
[1723251240816,3.86505,2587.3,2586.8,2.4409]
[1723251241002,3.86574,2586.9,2586.5,2.4409]
[1723251241207,3.8654,2587.1,2586.5,3.86613]
[1723251241487,3.86547,2587.1,2586.5,3.86613]
[1723251241629,3.86564,2586.9,2586.3,3.86644]
[1723251241930,3.86564,2586.9,2586.2,2.4409]
[1723251241931,3.86602,2586.7,2586.2,2.4409]
[1723251242130,3.86608,2586.6,2586.2,2.4409]
[1723251242338,3.86602,2586.7,2586.0,3.86687]
[1723251242499,3.86537,2587.1,2585.7,8.377]
[1723251242500,3.86542,2587.1,2586.3,3.86638]
[1723251242702,3.86542,2587.1,2586.5,3.86613]
[1723251242703,3.386542,2587.0,2586.5,3.86613]
[1723251242903,1.002924,2587.5,2586.9,2.4409]
[1723251243194,3.86422,2587.9,2587.2,3.86509]
[1723251243424,3.86422,2587.9,2587.3,0.07729357]
[1723251243608,3.86422,2587.9,2587.3,3.94230357]
[1723251243810,3.86497,2587.4,2586.9,2.4409]
[1723251244014,3.86497,2587.4,2586.1,3.0]
[1723251244015,3.86521,2587.2,2586.7,3.86592]
[1723251244335,3.86475,2587.5,2586.9,3.86561]
[1723251244501,3.86466,2587.6,2587.0,3.86548]
[1723251244697,3.86435,2587.8,2587.0,3.86548]
[1723251244698,7.72875,2587.8,2587.1,3.86531]
[1723251244914,3.386435,2587.7,2587.1,6.30621]
[1723251245129,3.386435,2587.7,2587.1,2.4409]
[1723251245303,3.386435,2587.7,2586.9,6.30642]
[1723251245304,3.86482,2587.5,2586.9,6.30642]
[1723251245501,3.86435,2587.8,2587.1,3.86521]
[1723251245702,3.0,2587.7,2586.9,6.30646]
[1723251245925,3.86497,2587.4,2586.9,2.4409]
[1723251246109,7.72997,2587.4,2586.9,2.4409]
[1723251246336,3.86497,2587.4,2586.9,2.4409]
[1723251246853,3.86497,2587.4,2586.1,3.0]
[1723251246854,0.386497,2587.4,2586.3,3.86646]
[1723251247006,0.386497,2587.4,2586.4,3.86628]
[1723251247007,3.86551,2587.0,2586.4,3.86628]
[1723251247344,3.86535,2587.1,2586.4,3.86628]
[1723251247848,3.86535,2587.1,2586.3,3.86641]
[1723251247849,3.86535,2587.1,2586.5,3.86622]
[1723251248049,3.86535,2587.1,2586.5,3.86613]
[1723251248404,3.86535,2587.1,2586.3,3.86651]
[1723251248932,3.86535,2587.1,2586.4,3.86633]
[1723251249164,3.86535,2587.1,2586.5,3.86613]
[1723251249472,3.86535,2587.1,2586.5,0.773239]
[1723251249613,7.73147,2586.9,2586.2,6.30748]
[1723251249917,3.86537,2587.1,2586.5,3.8662]
[1723251251025,6.8651,2587.3,2586.6,3.86598]
[1723251251224,3.86414,2587.9,2587.1,3.86523]
[1723251251428,3.86414,2587.9,2587.2,3.94245933]
[1723251251429,3.86449,2587.7,2587.2,3.94245933]
[1723251251624,3.86414,2587.9,2587.2,3.94245933]
[1723251251625,3.86414,2587.9,2587.3,3.94222572]
[1723251251837,3.86414,2587.9,2587.4,2.4409]
[1723251252316,3.86387,2588.1,2587.5,3.86469]
[1723251252620,2.3,2588.4,2587.5,3.86469]
[1723251252621,3.86357,2588.3,2587.7,3.86443]
[1723251253015,3.86357,2588.3,2587.6,0.07728703]
[1723251253016,3.86377,2588.2,2587.6,0.07728703]
[1723251253207,3.86408,2588.0,2587.5,1.02476713]
[1723251253411,3.86454,2587.7,2587.0,2.4409]
[1723251253612,3.86454,2587.7,2587.1,3.86524]
[1723251253843,3.86418,2587.9,2587.2,2.4409]
[1723251254059,0.90529384,2589.2,2587.9,3.86413]
[1723251254060,3.863,2588.7,2587.9,3.86413]
[1723251254217,0.3863,2588.6,2587.9,3.86412]
[1723251254420,3.86332,2588.5,2588.0,0.07726949]
[1723251254659,3.86378,2588.2,2587.7,2.4409]
[1723251254869,3.86347,2588.4,2587.7,2.4409]
[1723251255014,3.86287,2588.8,2587.8,0.07727177]
[1723251255208,4.479257,2588.7,2588.1,3.86374]
[1723251255712,4.479237,2588.7,2588.2,2.4409]
[1723251255912,3.86323,2588.6,2588.2,2.4409]
[1723251256150,3.86348,2588.4,2587.9,2.4409]
[1723251256363,3.86348,2588.4,2587.5,3.86467]
[1723251256364,3.8637,2588.2,2587.6,2.4409]
[1723251256596,3.86386,2588.1,2587.6,2.4409]
[1723251256888,3.86346,2588.4,2587.7,3.86428]
[1723251257034,2.3,2588.7,2587.6,2.4409]
[1723251257035,3.86387,2588.1,2587.6,2.4409]
[1723251257795,3.86354,2588.3,2587.7,3.86438]
[1723251258076,3.86354,2588.3,2587.6,2.4409]
[1723251258233,7.7272,2588.3,2587.7,3.86432]
[1723251258432,7.7272,2588.3,2587.6,2.4409]
[1723251258433,3.86384,2588.1,2587.6,2.4409]
[1723251259670,3.86395,2588.1,2587.6,2.4409]
[1723251260845,3.86339,2588.4,2587.6,2.4409]
[1723251261047,3.86333,2588.5,2587.8,3.86415]
[1723251261048,3.86354,2588.3,2587.8,3.86415]
[1723251261555,7.7267,2588.5,2587.8,7.72833]
[1723251261759,3.86341,2588.4,2587.8,7.80561428]
[1723251262080,3.86341,2588.4,2587.8,8.85467471]
[1723251262266,3.86358,2588.3,2587.8,4.99048471]
[1723251262467,3.86374,2588.2,2587.6,6.54947]
[1723251262780,3.86374,2588.2,2587.6,10.41396]
[1723251263149,7.72722,2588.3,2587.7,3.86443]
[1723251263586,3.86377,2588.2,2587.6,2.4409]
[1723251263787,2.3334,2588.4,2587.6,2.4409]
[1723251264133,3.86371,2588.2,2587.2,2.4828]
[1723251264386,3.0,2588.1,2587.2,2.4828]
[1723251264550,3.86513,2587.3,2587.0,31.87]
[1723251264747,7.72998,2587.4,2586.8,6.34857]
[1723251264974,3.86529,2587.2,2586.8,2.4828]
[1723251265173,3.86503,2587.3,2586.8,2.4828]
[1723251265382,3.86474,2587.5,2586.8,6.34848]
[1723251265587,3.8649,2587.4,2586.8,6.34848]
[1723251265886,3.86494,2587.4,2586.8,2.4828]
[1723251266101,0.386446,2587.6,2586.8,2.4828]
[1723251266250,3.86513,2587.3,2586.8,2.4828]
[1723251267578,3.86518,2587.2,2586.8,2.4828]
[1723251268998,3.86494,2587.4,2586.8,2.4828]
[1723251269162,7.72935,2587.6,2586.9,3.86559]
[1723251269366,3.86478,2587.5,2586.9,3.86559]
[1723251270270,3.86492,2587.4,2586.8,6.6740318]
[1723251270476,3.86492,2587.4,2586.8,10.5397218]
[1723251270793,7.72989,2587.4,2586.8,6.6740318]
[1723251271299,3.86504,2587.3,2586.8,6.6740318]
[1723251271642,3.019771,2588.0,2586.8,6.6740318]
[1723251271643,3.0,2587.6,2586.8,2.4828]
[1723251271791,10.72933,2587.6,2587.1,3.86522]
[1723251271972,10.72933,2587.6,2586.9,3.94285775]
[1723251271973,6.86466,2587.6,2587.0,3.86539]
[1723251272364,6.86466,2587.6,2587.2,3.86512]
[1723251272365,3.0,2587.6,2587.2,3.86512]
[1723251272569,6.883841,2588.0,2587.2,3.86512]
[1723251272570,3.8642,2587.9,2587.3,6.34771]
[1723251272803,3.8643,2587.8,2587.3,6.34771]
[1723251273922,7.72867,2587.8,2587.3,6.34771]
[1723251274371,3.8643,2587.8,2587.3,6.34771]
[1723251274578,6.86443,2587.7,2586.9,2.4828]
[1723251274879,3.86511,2587.3,2586.9,2.4828]
[1723251275108,3.86521,2587.2,2586.9,2.4828]
[1723251275526,3.865,2587.4,2586.9,2.4828]
[1723251275822,3.86461,2587.6,2587.1,3.86531]
[1723251275823,7.72928,2587.6,2587.1,3.86531]
[1723251276014,3.86461,2587.6,2587.1,3.86531]
[1723251276387,3.86461,2587.6,2586.9,10.2138]
[1723251276586,3.86473,2587.5,2586.9,10.2138]
[1723251276885,7.72929,2587.6,2587.0,3.8654]
[1723251277082,3.86474,2587.5,2587.0,3.8654]
[1723251277435,3.86497,2587.4,2586.9,2.4828]
[1723251277610,3.86497,2587.4,2586.6,2.4828]
[1723251277611,3.86533,2587.1,2586.6,2.4828]
[1723251277812,0.386497,2587.4,2586.3,13.83924]
[1723251277813,4.251417,2587.4,2586.3,13.83924]
[1723251278118,3.86548,2587.0,2586.5,3.86622]
[1723251278625,3.86533,2587.1,2586.5,3.86622]
[1723251278826,3.8655,2587.0,2586.5,3.86622]
[1723251279156,3.8655,2587.0,2586.4,3.86634]
[1723251279287,3.8655,2587.0,2586.4,4.887898]
[1723251279488,7.73077,2587.1,2586.5,3.86616]
[1723251279895,3.86533,2587.1,2586.5,3.86616]
[1723251280102,2.4306,2587.9,2586.7,2.3468]
[1723251280336,3.86541,2587.1,2586.7,2.3468]
[1723251280630,3.86517,2587.3,2586.7,2.3468]
[1723251280840,3.86517,2587.3,2586.7,6.21272]
[1723251280994,7.73034,2587.3,2586.7,6.21272]
[1723251281197,3.86518,2587.2,2586.7,2.3468]
[1723251281536,3.86517,2587.3,2586.7,2.3468]
[1723251281692,3.86512,2587.3,2586.7,6.833917]
[1723251282546,3.86451,2587.7,2586.9,3.86555]
[1723251282704,3.86466,2587.6,2587.0,3.94268183]
[1723251282921,3.86443,2587.7,2587.1,3.86533]
[1723251283252,3.86443,2587.7,2587.1,4.88083318]
[1723251283748,3.86469,2587.6,2587.1,1.01550318]
[1723251283952,3.86313,2588.6,2586.9,6.21229]
[1723251283953,3.86503,2587.3,2586.9,2.3468]
[1723251284173,7.73015,2587.3,2586.9,2.3468]
[1723251284949,3.86518,2587.2,2586.9,2.3468]
[1723251285158,3.86548,2587.0,2586.5,13.70296]
[1723251285342,3.86548,2587.0,2586.6,1.370296]
[1723251285551,3.86581,2586.8,2586.5,2.3468]
[1723251286365,3.86622,2586.6,2586.1,2.3468]
[1723251286713,3.86617,2586.6,2586.1,2.3468]
[1723251286917,3.86617,2586.6,2586.1,6.29092634]
[1723251287213,6.86529,2587.2,2586.6,3.86605]
[1723251287413,10.73056,2587.2,2586.6,3.86605]
[1723251287657,3.86535,2587.1,2586.5,3.86609]
[1723251287854,3.86535,2587.1,2586.5,4.95133629]
[1723251288324,6.86527,2587.2,2586.4,2.3468]
[1723251288325,3.86573,2586.9,2586.4,2.3468]
[1723251288733,7.73085,2587.1,2586.4,2.3468]
[1723251289013,3.86474,2587.5,2586.8,3.86576]
[1723251289214,3.86481,2587.5,2586.9,3.94285924]
[1723251289536,3.0,2587.4,2586.9,4.33714516]
[1723251290111,3.0,2587.4,2587.1,3.8652]
[1723251290356,3.0,2587.6,2587.1,3.8652]
[1723251290553,3.86446,2587.7,2587.1,3.8652]
[1723251290918,3.8647,2587.6,2587.0,6.21226]
[1723251291118,3.86476,2587.5,2587.0,3.08474806]
[1723251291444,3.86498,2587.4,2587.0,2.3468]
[1723251291645,3.86458,2587.6,2587.0,2.3468]
[1723251291866,3.86476,2587.5,2587.0,6.21219]
[1723251292032,3.86476,2587.5,2587.0,7.219979]
[1723251292921,3.86476,2587.5,2587.0,3.354589]
[1723251293237,3.86432,2587.8,2587.2,3.86508]
[1723251293448,3.8646,2587.6,2587.2,0.07729147]
[1723251293622,3.86432,2587.8,2587.2,0.07729147]
[1723251293821,3.86432,2587.8,2587.0,7.219979]
[1723251294043,3.86432,2587.8,2587.1,0.7219979]
[1723251294251,3.86446,2587.7,2587.1,4.5872479]
[1723251294670,3.86446,2587.7,2587.2,3.86518]
[1723251294872,3.86446,2587.7,2587.2,3.9424734]
[1723251295089,6.86377,2588.2,2587.6,3.86446]
[1723251295376,3.86347,2588.4,2587.8,3.86426]
[1723251295675,3.86347,2588.4,2587.9,0.07727492]
[1723251295831,3.8625,2589.0,2588.0,3.86396]
[1723251296028,3.86318,2588.6,2588.0,3.86396]
[1723251296240,3.86318,2588.6,2587.9,2.3468]
[1723251296241,3.86335,2588.5,2587.9,6.21081]
[1723251296421,7.72669,2588.5,2587.9,6.21081]
[1723251296627,3.8636,2588.3,2587.9,2.3468]
[1723251296863,3.0,2588.4,2587.9,2.3468]
[1723251297445,3.86367,2588.3,2587.9,2.3468]
[1723251297622,3.86331,2588.5,2587.9,2.3468]
[1723251297829,3.86302,2588.7,2588.0,0.07727239]
[1723251298157,5.376,2589.3,2588.2,2.3468]
[1723251298158,3.86267,2588.9,2588.2,2.3468]
[1723251298327,3.8628,2588.8,2588.2,2.3468]
[1723251298939,3.86299,2588.7,2588.2,2.3468]
[1723251299765,7.72605,2588.7,2588.2,2.3468]
[1723251300125,3.86299,2588.7,2588.2,2.3468]
[1723251301071,3.86325,2588.5,2588.2,2.3468]
[1723251301431,3.86325,2588.5,2587.9,6.3623]
[1723251301432,3.86331,2588.5,2587.9,6.3623]
[1723251301629,3.86331,2588.5,2587.9,3.520864]
[1723251301630,3.86344,2588.4,2587.9,3.520864]
[1723251302662,3.86378,2588.2,2587.9,2.4982]
[1723251302862,3.86333,2588.5,2587.9,6.36221]
[1723251303057,3.0,2588.4,2588.0,3.94115247]
[1723251303403,3.8634,2588.4,2587.9,2.4982]
[1723251303553,3.8634,2588.4,2587.9,2.57547257]
[1723251303758,3.0,2588.5,2587.9,2.4982]
[1723251303953,3.86341,2588.4,2587.9,2.4982]
[1723251304854,3.0,2588.5,2587.9,2.4982]
[1723251305162,3.86348,2588.4,2587.9,2.4982]
[1723251305362,7.72698,2588.4,2587.9,2.4982]
[1723251305895,3.8637,2588.2,2587.9,2.4982]
[1723251307890,4.936178,2588.4,2587.6,6.36273]
[1723251309052,3.86404,2588.0,2587.4,11.35487]
[1723251309208,3.86404,2588.0,2587.4,7.49]
[1723251309209,3.86431,2587.8,2587.4,7.49]
[1723251309534,3.86431,2587.8,2587.3,2.4982]
[1723251309697,3.86447,2587.7,2587.3,2.4982]
[1723251310094,3.86468,2587.6,2587.3,2.4982]
[1723251310937,3.86488,2587.4,2586.9,2.4982]
[1723251311095,3.86467,2587.6,2586.9,2.4982]
[1723251311445,3.86475,2587.5,2586.9,7.7653]
[1723251311614,3.86475,2587.5,2586.9,11.63083]
[1723251311813,3.86475,2587.5,2587.0,3.86547]
[1723251312023,3.86449,2587.7,2587.1,3.86529]
[1723251312210,3.86449,2587.7,2587.1,7.73052]
[1723251312412,3.86462,2587.6,2587.1,3.86523]
[1723251313336,3.86475,2587.5,2586.9,7.76534]
[1723251314405,3.919662,2588.1,2587.1,2.4982]
[1723251314749,2.3329,2588.5,2587.6,2.4982]
[1723251314750,3.86362,2588.3,2587.6,2.4982]
[1723251314947,3.86328,2588.5,2587.8,3.86416]
[1723251315256,3.86348,2588.4,2587.8,3.86416]
[1723251315447,3.86355,2588.3,2587.8,3.86416]
[1723251315807,7.72717,2588.3,2587.7,3.86434]
[1723251316005,7.72718,2588.3,2587.8,0.636254]
[1723251316235,3.86355,2588.3,2587.8,0.636254]
[1723251316432,3.86342,2588.4,2587.8,0.636254]
[1723251316633,3.86359,2588.3,2587.8,0.636254]
[1723251317251,3.86359,2588.3,2587.9,0.4500594]
[1723251317841,3.86359,2588.3,2587.8,0.636254]
[1723251318458,3.86325,2588.5,2588.0,2.4982]
[1723251318604,3.8635,2588.4,2588.0,2.4982]
[1723251318804,7.72698,2588.4,2588.0,2.4982]
[1723251319037,3.86348,2588.4,2588.0,2.4982]
[1723251319703,3.0,2588.8,2588.0,3.27533085]
[1723251319909,3.86291,2588.8,2588.2,3.86367]
[1723251320245,3.86297,2588.7,2588.2,3.86367]
[1723251320449,3.8629,2588.8,2588.2,3.86367]
[1723251320634,3.8629,2588.8,2588.0,6.43933245]
[1723251320635,3.86309,2588.6,2588.0,6.43933245]
[1723251320836,3.86322,2588.6,2588.1,0.64393325]
[1723251321038,3.86282,2588.8,2587.6,10.22714]
[1723251321232,3.86366,2588.3,2587.7,4.887104]
[1723251321435,4.249242,2588.7,2587.6,6.36263]
[1723251321635,3.0,2588.6,2587.6,6.36263]
[1723251321804,3.86356,2588.3,2587.7,3.8644]
[1723251322354,3.86346,2588.4,2587.6,2.4982]
[1723251322507,3.0,2588.6,2588.0,3.86397]
[1723251322844,3.0,2588.7,2588.1,2.57535825]
[1723251323033,3.0,2588.7,2588.1,6.43910825]
[1723251323034,6.86302,2588.7,2588.1,6.43910825]
[1723251323233,3.86302,2588.7,2588.2,1.03030783]
[1723251324024,3.86288,2588.8,2588.2,4.89389783]
[1723251324446,3.86288,2588.8,2588.2,1.03030783]
[1723251324645,3.86306,2588.7,2588.2,1.03030783]
[1723251325507,6.86257,2589.0,2588.3,0.73922778]
[1723251325735,4.4317061,2589.7,2588.3,0.73922778]
[1723251325736,3.8623,2589.2,2588.6,7.72595]
[1723251326010,3.86205,2589.3,2588.7,6.2943828]
[1723251326213,3.86235,2589.1,2588.7,2.3542]
[1723251326418,3.86264,2588.9,2588.7,2.3542]
[1723251326614,3.86305,2588.7,2588.3,3.09342778]
[1723251326949,3.86223,2589.2,2588.3,2.3542]
[1723251327165,3.86288,2588.8,2588.3,2.3542]
[1723251327627,3.86258,2589.0,2588.4,3.86337]
[1723251327812,3.86227,2589.2,2588.6,6.21727]
[1723251328029,3.86227,2589.2,2588.6,10.08027]
[1723251328228,6.86197,2589.4,2588.8,3.86271]
[1723251328229,3.86209,2589.3,2588.8,3.86271]
[1723251328430,3.0,2589.4,2588.7,0.07724888]
[1723251328763,3.0,2589.3,2588.8,3.86276]
[1723251328967,6.86205,2589.3,2588.8,3.86276]
[1723251329763,3.8622,2589.2,2588.7,0.07724888]
[1723251329965,3.0,2589.3,2588.7,4.67110697]
[1723251330266,3.86199,2589.4,2588.9,2.3542]
[1723251331060,6.86169,2589.6,2588.9,6.21683]
[1723251331243,3.86199,2589.4,2588.9,2.3542]
[1723251331447,3.86168,2589.6,2589.1,3.86226]
[1723251331801,7.72216,2590.0,2589.4,3.86187]
[1723251332072,3.86106,2590.0,2589.4,3.93909971]
[1723251332286,3.86087,2590.1,2589.4,0.07722971]
[1723251332572,2.4526,2590.4,2589.4,0.70656968]
[1723251332742,2.4526,2590.4,2589.3,2.3542]
[1723251332743,3.86089,2590.1,2589.3,2.3542]
[1723251332944,3.86188,2589.5,2589.3,2.3542]
[1723251333157,3.86186,2589.5,2589.0,2.3542]
[1723251333371,3.86186,2589.5,2589.0,6.21662]
[1723251333555,2.4526,2590.4,2589.2,2.3542]
[1723251333886,3.86113,2590.0,2589.3,3.9391777]
[1723251334086,3.86113,2590.0,2589.3,7.8011377]
[1723251334380,3.86116,2589.9,2589.3,1.09276147]
[1723251334587,3.86116,2589.9,2589.2,2.3542]
[1723251334588,3.86088,2590.1,2589.2,2.3542]
[1723251334742,3.86166,2589.6,2589.2,2.3542]
[1723251334941,3.86136,2589.8,2588.9,7.49]